bitfinex-derivatives/quotes_SOLF0:USTF0_20250509
["timestamp","ask_amount","ask_price","bid_price","bid_amount"]
[1746771463261,6.1293,163.18,163.14,6.1303]
[1746771463454,38.32,163.19,163.14,6.1303]
[1746771463761,6.1295,163.17,163.13,6.1308]
[1746771463961,38.32,163.19,163.13,6.1308]
[1746771464363,6.1297,163.17,163.13,6.1308]
[1746771464863,38.62,163.17,163.08,2.0579]
[1746771465059,38.62,163.17,163.07,3.9304]
[1746771465060,38.62,163.17,163.07,2.029]
[1746771465258,3.8901,163.16,163.03,76.92]
[1746771465459,3.8901,163.16,163.07,6.1329]
[1746771465961,6.132,163.11,163.07,6.1329]
[1746771466462,6.1321,163.1,163.07,6.1329]
[1746771466659,38.32,163.14,163.03,76.92]
[1746771467061,6.1321,163.1,163.03,76.92]
[1746771467763,6.1318,163.11,163.08,6.1328]
[1746771468962,6.1314,163.12,163.09,6.1324]
[1746771469562,6.1318,163.11,163.08,6.1328]
[1746771470266,6.1315,163.12,163.08,6.1328]
[1746771471565,6.1315,163.12,163.09,6.1324]
[1746771471759,6.1307,163.14,163.05,9.77402799]
[1746771472164,38.34,163.16,163.05,9.77402799]
[1746771472464,6.131,163.13,163.05,9.77402799]
[1746771472864,6.1306,163.14,163.05,9.77402799]
[1746771473563,6.1302,163.15,163.11,6.1314]
[1746771474064,38.34,163.16,163.13,6.1309]
[1746771474257,38.34,163.16,163.08,37.84]
[1746771474460,357.0,163.18,163.09,5.7783]
[1746771474863,357.0,163.18,163.09,3.8761]
[1746771475365,6.1308,163.14,163.1,6.1318]
[1746771475559,357.0,163.18,163.09,3.8761]
[1746771475866,6.1315,163.12,163.08,43.9726]
[1746771476064,37.96,163.15,163.08,43.9726]
[1746771476269,37.96,163.15,163.08,6.1326]
[1746771476566,6.132,163.11,163.07,6.1331]
[1746771477062,44.0109,163.15,163.06,6.1336]
[1746771477461,44.0109,163.15,163.04,41.8361]
[1746771477665,44.0109,163.15,163.05,6.1339]
[1746771477866,44.0109,163.15,163.02,37.64]
[1746771478465,6.1319,163.11,163.02,37.64]
[1746771478861,6.1323,163.1,163.06,6.1333]
[1746771479166,44.0109,163.15,163.02,37.64]
[1746771479663,6.1322,163.1,163.06,6.1334]
[1746771479965,44.0109,163.15,163.02,37.64]
[1746771480166,6.132,163.11,163.02,37.64]
[1746771480360,44.0109,163.15,163.02,37.64]
[1746771480772,6.1323,163.1,163.06,6.1332]
[1746771481069,6.1323,163.1,163.02,37.64]
[1746771481268,6.1323,163.1,163.06,6.1333]
[1746771481663,6.1323,163.1,163.02,37.64]
[1746771481864,6.1323,163.1,163.06,6.1333]
[1746771482066,6.1323,163.1,163.02,37.64]
[1746771482461,44.0109,163.15,163.01,3.8866]
[1746771482669,357.0,163.14,163.01,41.1266]
[1746771482871,6.1319,163.11,163.01,3.8866]
[1746771483170,357.0,163.14,163.03,9.77402799]
[1746771483370,6.1312,163.13,163.1,6.132]
[1746771484269,6.1309,163.14,163.05,39.2012]
[1746771484469,37.96,163.15,163.05,39.2012]
[1746771484970,37.96,163.15,163.11,6.1317]
[1746771485678,44.0904,163.15,163.11,6.1317]
[1746771485977,44.0904,163.15,163.12,6.1313]
[1746771486176,37.96,163.15,163.05,39.2012]
[1746771486476,6.1306,163.14,163.05,39.2012]
[1746771486676,37.96,163.15,163.05,39.2012]
[1746771486878,398.9717,163.19,163.07,9.77402799]
[1746771487076,6.1299,163.16,163.08,2.0661]
[1746771487477,6.1299,163.16,163.08,3.9953]
[1746771487669,398.9717,163.19,163.08,3.9953]
[1746771487874,358.9706,163.23,163.09,37.96]
[1746771488074,396.9306,163.23,163.11,9.77402799]
[1746771488278,396.9306,163.23,163.12,2.0764]
[1746771488471,394.96,163.23,163.12,2.0764]
[1746771488779,37.96,163.23,163.12,2.0764]
[1746771489379,37.96,163.23,163.19,6.1285]
[1746771489578,135.42606088,163.27,163.16,37.4]
[1746771489875,135.42606088,163.27,163.17,4.0029]
[1746771490077,135.42606088,163.27,163.17,2.0641]
[1746771490380,135.42606088,163.27,163.16,37.4]
[1746771492176,6.1289,163.19,163.16,37.4]
[1746771492383,6.1289,163.19,163.14,6.1305]
[1746771492384,37.96,163.22,163.12,41.5405]
[1746771492773,37.96,163.22,163.13,1.9254]
[1746771494377,6.129,163.19,163.14,6.1305]
[1746771494683,37.96,163.22,163.12,39.4764]
[1746771495081,6.1284,163.2,163.15,6.1299]
[1746771495583,37.96,163.22,163.15,6.1299]
[1746771495584,6.1288,163.19,163.15,6.1299]
[1746771495774,37.96,163.22,163.12,41.4643]
[1746771495979,37.96,163.22,163.12,53.21372799]
[1746771496285,37.96,163.22,163.18,6.1287]
[1746771496679,44.0876,163.22,163.18,6.1287]
[1746771496887,37.96,163.22,163.12,53.21372799]
[1746771497682,44.0876,163.22,163.12,53.21372799]
[1746771497985,37.96,163.22,163.12,53.21372799]
[1746771498287,6.1283,163.21,163.16,6.1295]
[1746771498485,6.1283,163.21,163.12,53.21372799]
[1746771499084,37.96,163.22,163.12,15.81372799]
[1746771499281,37.4,163.21,163.12,4.0643]
[1746771499884,1.916,163.23,163.16,6.1295]
[1746771500083,1.916,163.23,163.13,1.9871]
[1746771500388,6.128,163.21,163.13,1.9871]
[1746771500688,1.916,163.23,163.13,1.9871]
[1746771500983,6.1283,163.2,163.13,1.9871]
[1746771501286,6.1283,163.2,163.16,6.1295]
[1746771501484,1.916,163.23,163.13,1.9871]
[1746771501687,6.128,163.21,163.16,6.1298]
[1746771501881,6.128,163.21,163.13,1.9871]
[1746771502083,1.916,163.23,163.13,1.9871]
[1746771502282,6.1287,163.2,163.16,6.1296]
[1746771503089,6.1288,163.19,163.16,6.1296]
[1746771503388,1.916,163.23,163.16,6.1296]
[1746771503987,6.1286,163.2,163.16,6.1296]
[1746771505384,6.1288,163.19,163.16,6.1296]
[1746771505585,1.916,163.23,163.12,2.0764]
[1746771505791,1.916,163.23,163.11,1.0]
[1746771506190,529.62,163.22,163.11,7.1317]
[1746771506392,529.62,163.22,163.11,1.0]
[1746771506691,6.13,163.16,163.12,6.1311]
[1746771506894,37.36,163.19,163.11,1.0]
[1746771507694,37.36,163.19,163.16,6.1298]
[1746771507895,37.36,163.19,163.11,1.0]
[1746771508097,37.36,163.19,163.11,5.0018]
[1746771508796,37.36,163.19,163.16,6.1296]
[1746771509293,37.36,163.19,163.11,5.0018]
[1746771509794,37.36,163.19,163.11,1.0]
[1746771509995,39.816,163.18,163.11,1.0]
[1746771510195,1.9096,163.17,163.11,1.0]
[1746771510900,39.816,163.18,163.11,1.0]
[1746771511399,6.1299,163.16,163.11,1.0]
[1746771512000,39.816,163.18,163.12,6.1312]
[1746771512698,6.1301,163.16,163.12,6.1312]
[1746771513400,39.816,163.18,163.11,1.0]
[1746771513694,9.77402799,163.24,163.11,1.0]
[1746771513695,144.50610426,163.39,163.12,74.94]
[1746771513894,2.0082,163.38,163.24,9.72332907]
[1746771514201,124.06366255,163.37,163.24,9.72332907]
[1746771514999,124.06366255,163.37,163.29,6.1248]
[1746771515199,124.06366255,163.37,163.24,9.72332907]
[1746771515501,124.06366255,163.37,163.28,9.72332907]
[1746771515710,86.70366255,163.37,163.28,9.72332907]
[1746771516100,39.3682,163.38,163.28,47.22332907]
[1746771516707,39.3682,163.38,163.35,6.1225]
[1746771516906,39.3682,163.38,163.28,47.22332907]
[1746771517909,2.0373,163.39,163.32,9.72332907]
[1746771518208,1.9853,163.4,163.33,37.3]
[1746771519907,1.9853,163.4,163.36,6.1222]
[1746771520806,1.9853,163.4,163.37,6.1219]
[1746771523809,1.9853,163.4,163.33,37.3]
[1746771525009,8.1064,163.4,163.35,6.1227]
[1746771525307,1.9853,163.4,163.33,37.3]
[1746771525508,1.9853,163.4,163.36,6.1221]
[1746771525809,357.0,163.48,163.36,46.52332907]
[1746771526011,5.8876,163.47,163.36,46.52332907]
[1746771527211,5.8876,163.47,163.38,6.1213]
[1746771527407,5.8876,163.47,163.36,36.8]
[1746771527706,1.10299256,163.46,163.35,9.72332907]
[1746771527906,74.0,163.45,163.35,9.72332907]
[1746771528306,6.1215,163.39,163.32,46.38332907]
[1746771528500,6.1215,163.39,163.33,6.1233]
[1746771528704,74.0,163.45,163.33,6.1233]
[1746771529610,74.0,163.45,163.32,6.1237]
[1746771529814,357.0,163.44,163.28,9.72332907]
[1746771530012,6.1233,163.34,163.29,6.1247]
[1746771530215,73.82,163.38,163.28,9.72332907]
[1746771530413,5.8641,163.37,163.28,9.72332907]
[1746771531212,5.8641,163.37,163.29,6.1247]
[1746771531713,6.1232,163.34,163.3,6.1246]
[1746771532214,5.8641,163.37,163.28,9.72332907]
[1746771532413,6.1223,163.36,163.28,9.72332907]
[1746771532815,6.1223,163.36,163.31,6.1239]
[1746771533114,6.1223,163.36,163.28,9.72332907]
[1746771533417,6.1228,163.35,163.28,9.72332907]
[1746771533809,5.8641,163.37,163.28,9.72332907]
[1746771534615,5.8641,163.37,163.26,47.38391907]
[1746771535117,6.1232,163.34,163.26,47.38391907]
[1746771535315,5.8641,163.37,163.26,47.38391907]
[1746771535614,6.1235,163.33,163.29,6.1249]
[1746771535921,6.1235,163.33,163.26,47.38391907]
[1746771536712,36.32,163.35,163.26,47.38391907]
[1746771537218,6.1242,163.31,163.28,6.1253]
[1746771537717,6.1242,163.31,163.26,47.38391907]
[1746771537918,6.1242,163.31,163.26,10.06391907]
[1746771538112,6.1242,163.31,163.27,6.1254]
[1746771538514,6.1238,163.32,163.27,6.1254]
[1746771538711,6.1238,163.32,163.26,0.34059]
[1746771539020,6.1242,163.31,163.26,0.34059]
[1746771539221,36.32,163.35,163.26,0.34059]
[1746771539924,6.1241,163.32,163.28,6.1249]
[1746771540125,6.1241,163.32,163.26,0.34059]
[1746771540425,72.22,163.36,163.26,0.34059]
[1746771540628,6.123,163.35,163.26,0.34059]
[1746771541126,6.123,163.35,163.31,6.1242]
[1746771541426,6.123,163.35,163.26,0.34059]
[1746771541929,6.123,163.35,163.31,6.1241]
[1746771542128,6.123,163.35,163.27,9.72332907]
[1746771542524,6.123,163.35,163.31,6.1239]
[1746771543127,6.123,163.35,163.32,6.1237]
[1746771543329,42.4424,163.36,163.32,6.1237]
[1746771543527,2.0217,163.37,163.28,72.16]
[1746771543723,36.32,163.39,163.34,6.1228]
[1746771543925,6.1219,163.38,163.34,6.1228]
[1746771544128,36.32,163.39,163.28,72.16]
[1746771544324,6.123,163.35,163.28,72.16]
[1746771544530,36.32,163.39,163.28,72.16]
[1746771544728,36.32,163.39,163.28,35.84]
[1746771544929,6.1234,163.34,163.3,6.1242]
[1746771545332,6.123,163.35,163.31,6.124]
[1746771545532,72.08,163.36,163.31,6.124]
[1746771546532,72.08,163.36,163.28,35.84]
[1746771546738,6.1229,163.35,163.28,35.84]
[1746771547836,78.2024,163.36,163.28,35.84]
[1746771548334,6.1227,163.35,163.32,6.1237]
[1746771548530,36.32,163.38,163.28,35.84]
[1746771548731,36.32,163.38,163.29,9.72332907]
[1746771549235,6.122,163.37,163.29,9.72332907]
[1746771549937,6.122,163.37,163.33,6.1232]
[1746771550436,6.1224,163.36,163.29,1.0]
[1746771550839,36.32,163.38,163.29,1.0]
[1746771551138,6.122,163.37,163.29,1.0]
[1746771551537,42.4417,163.38,163.34,6.1229]
[1746771554039,6.1222,163.37,163.33,6.1233]
[1746771554340,36.32,163.38,163.29,1.0]
[1746771555035,42.4417,163.38,163.29,1.0]
[1746771555638,42.4417,163.38,163.34,6.1228]
[1746771556535,42.4417,163.38,163.29,1.0]
[1746771556740,42.4417,163.38,163.35,6.1227]
[1746771557441,36.32,163.38,163.29,37.32]
[1746771557641,1.987,163.41,163.31,9.72332907]
[1746771558341,1.987,163.41,163.32,3.8302]
[1746771558544,1.987,163.41,163.33,35.4]
[1746771559341,1.987,163.41,163.39,6.1211]
[1746771560439,529.08,163.42,163.33,35.4]
[1746771560941,6.1212,163.4,163.33,35.4]
[1746771561242,531.1179,163.42,163.35,6.1227]
[1746771561447,6.1215,163.39,163.35,6.1227]
[1746771561640,531.1179,163.42,163.33,35.4]
[1746771562239,531.1179,163.42,163.28,35.14]
[1746771562441,531.1179,163.42,163.33,6.1232]
[1746771562638,6.1222,163.37,163.33,6.1232]
[1746771562838,6.1222,163.37,163.28,35.14]
[1746771563044,6.1222,163.37,163.33,6.1232]
[1746771563546,6.1224,163.36,163.33,6.1232]
[1746771563940,35.18,163.38,163.29,1.0]
[1746771564237,366.72332907,163.37,163.2,35.18]
[1746771564454,357.0,163.36,163.27,6.1257]
[1746771564639,6.1241,163.32,163.27,6.1257]
[1746771564841,35.18,163.31,163.27,6.1257]
[1746771565043,35.18,163.32,163.27,6.1257]
[1746771565946,6.1247,163.3,163.27,6.1257]
[1746771567243,6.1247,163.3,163.26,6.46649]
[1746771568343,6.1251,163.29,163.26,6.46649]
[1746771568543,35.18,163.32,163.26,0.34059]
[1746771569443,2.0543,163.31,163.26,0.34059]
[1746771569849,6.1257,163.27,163.26,0.34059]
[1746771570049,41.3057,163.27,163.26,0.34059]
[1746771571550,6.1257,163.27,163.26,0.34059]
[1746771573949,6.1268,163.25,163.18,38.6404]
[1746771574150,39.1009,163.29,163.18,38.6404]
[1746771574452,6.1263,163.26,163.18,38.6404]
[1746771574954,6.1265,163.25,163.21,6.1276]
[1746771575252,6.1265,163.25,163.18,38.6404]
[1746771576054,6.126,163.27,163.18,38.6404]
[1746771576553,6.1258,163.27,163.18,38.7004]
[1746771576954,6.1258,163.27,163.23,6.127]
[1746771577553,6.1261,163.26,163.23,6.127]
[1746771577855,3.9209,163.29,163.23,6.127]
[1746771579749,6.1261,163.26,163.23,6.127]
[1746771582556,3.9209,163.29,163.21,6.1278]
[1746771582958,6.1267,163.25,163.21,6.1278]
[1746771583156,6.1267,163.25,163.22,6.1275]
[1746771583558,6.1269,163.24,163.18,38.5804]
[1746771583954,6.1269,163.24,163.21,6.1279]
[1746771584150,6.1272,163.23,163.04,9.72332907]
[1746771584357,35.2,163.26,163.13,6.1002]
[1746771584653,1.9034,163.25,163.17,6.1293]
[1746771584956,6.1282,163.21,163.17,6.1293]
[1746771585660,6.1277,163.22,163.18,6.1291]
[1746771585862,1.9034,163.25,163.15,9.72332907]
[1746771586053,35.2,163.26,163.15,9.72332907]
[1746771586252,35.2,163.26,163.23,6.1271]
[1746771587864,35.2,163.26,163.24,6.1267]
[1746771588564,35.2,163.26,163.23,6.1271]
[1746771588765,35.2,163.26,163.18,34.68]
[1746771589961,35.2,163.26,163.25,6.1264]
[1746771591361,35.2,163.3,163.28,6.1251]
[1746771592370,35.2,163.3,163.26,6.1259]
[1746771593268,35.2,163.3,163.27,6.1257]
[1746771593567,35.2,163.3,163.2,4.1238]
[1746771593867,35.2,163.3,163.27,6.1256]
[1746771594465,41.3246,163.3,163.27,6.1256]
[1746771594970,41.3246,163.3,163.2,4.1238]
[1746771594971,35.2,163.3,163.2,4.1238]
[1746771595271,35.2,163.3,163.21,34.1]
[1746771595463,37.2494,163.3,163.21,34.1]
[1746771596172,6.1259,163.27,163.23,6.1269]
[1746771596470,6.1259,163.27,163.21,34.1]
[1746771596670,37.2494,163.3,163.21,34.1]
[1746771596867,6.1256,163.28,163.24,6.1266]
[1746771597172,6.1256,163.28,163.21,34.1]
[1746771597370,6.125,163.29,163.26,6.126]
[1746771597570,37.2494,163.3,163.21,34.1]
[1746771597769,6.1256,163.28,163.24,6.1266]
[1746771598670,6.1258,163.27,163.24,6.1266]
[1746771599265,6.1261,163.26,163.23,6.1271]
[1746771600174,6.1258,163.27,163.24,6.1268]
[1746771600972,6.1255,163.28,163.25,6.1264]
[1746771603681,43.3742,163.3,163.25,6.1264]
[1746771604074,357.0,163.43,163.24,34.16]
[1746771604273,1.10362761,163.42,163.27,9.72332907]
[1746771604472,68.14,163.41,163.28,33.98]
[1746771604673,6.1215,163.39,163.28,33.98]
[1746771604871,6.1215,163.39,163.28,35.9621]
[1746771605172,4.1355,163.4,163.28,35.9621]
[1746771605775,6.1215,163.39,163.34,6.1228]
[1746771605977,4.1355,163.4,163.28,35.9621]
[1746771607575,10.2564,163.4,163.36,6.1222]
[1746771608183,34.16,163.41,163.28,35.9621]
[1746771608477,34.16,163.41,163.31,9.72332907]
[1746771608981,34.16,163.41,163.38,6.1216]
[1746771610674,40.2805,163.41,163.38,6.1216]
[1746771611078,34.16,163.41,163.38,6.1216]
[1746771611582,34.16,163.41,163.39,6.1212]
[1746771611781,34.16,163.41,163.33,36.0037]
[1746771612281,34.16,163.41,163.38,6.1213]
[1746771612482,34.16,163.41,163.33,36.0037]
[1746771612879,34.16,163.41,163.38,1.0]
[1746771613078,40.2805,163.41,163.38,7.1213]
[1746771613582,40.2805,163.41,163.38,1.0]
[1746771613583,34.16,163.41,163.38,1.0]
[1746771613777,6.1209,163.4,163.38,1.0]
[1746771614483,40.2806,163.41,163.38,1.0]
[1746771614983,6.1209,163.4,163.38,1.0]
[1746771615280,34.16,163.41,163.38,1.0]
[1746771615487,34.16,163.41,163.38,7.1215]
[1746771616385,34.16,163.41,163.38,1.0]
[1746771617185,34.16,163.41,163.28,36.1221]
[1746771617186,33.88,163.4,163.28,36.1221]
[1746771617384,33.88,163.4,163.28,70.0021]
[1746771617583,6.1223,163.36,163.32,6.1236]
[1746771617783,1.9472,163.39,163.28,70.0021]
[1746771618189,8.0687,163.39,163.35,6.1225]
[1746771618488,8.0687,163.39,163.28,70.0021]
[1746771618789,6.1215,163.39,163.35,6.1224]
[1746771618981,40.0009,163.4,163.28,70.0021]
[1746771619985,40.0009,163.4,163.37,6.1219]
[1746771620586,40.2805,163.41,163.37,6.1219]
[1746771621087,34.16,163.41,163.37,6.1219]
[1746771621289,40.2806,163.41,163.37,6.1219]
[1746771624887,34.16,163.41,163.33,33.68]
[1746771625097,33.66,163.48,163.35,9.72332907]
[1746771625388,2.0729,163.45,163.42,6.1199]
[1746771625589,2.0729,163.45,163.36,2.0938]
[1746771625990,2.0729,163.45,163.41,6.1202]
[1746771626193,2.0729,163.45,163.36,2.0938]
[1746771626585,2.0729,163.45,163.34,1.9655]
[1746771626891,6.1212,163.39,163.33,68.0]
[1746771627281,33.66,163.41,163.35,6.1227]
[1746771627484,6.1209,163.4,163.33,68.0]
[1746771627681,6.1209,163.4,163.33,74.07218086]
[1746771628089,39.7805,163.41,163.33,74.07218086]
[1746771628485,33.66,163.41,163.33,74.07218086]
[1746771628690,6.1209,163.4,163.33,74.07218086]
[1746771629092,6.1209,163.4,163.35,6.1224]
[1746771629292,33.66,163.41,163.35,6.1224]
[1746771629494,33.66,163.41,163.33,68.0]
[1746771629990,6.1211,163.4,163.36,6.1223]
[1746771630193,357.0,163.39,163.27,6.07218086]
[1746771630495,361.0245,163.38,163.23,2.0187]
[1746771630684,6.1245,163.31,163.25,6.1261]
[1746771630884,33.66,163.32,163.25,6.07218086]
[1746771631085,33.66,163.33,163.29,6.1249]
[1746771631387,33.66,163.35,163.28,6.07218086]
[1746771631689,6.1234,163.34,163.29,6.1248]
[1746771632191,6.1234,163.34,163.3,6.1243]
[1746771632391,39.7828,163.35,163.26,9.72053453]
[1746771632592,33.66,163.35,163.26,9.72053453]
[1746771632892,33.66,163.35,163.31,6.1239]
[1746771633195,33.66,163.35,163.27,2.0026]
[1746771633590,33.66,163.35,163.28,1.9493]
[1746771633997,6.1231,163.34,163.3,6.1242]
[1746771634195,33.66,163.35,163.28,1.9493]
[1746771634694,33.66,163.35,163.31,6.124]
[1746771635490,33.66,163.35,163.28,1.9493]
[1746771636299,33.66,163.35,163.33,6.1233]
[1746771636700,33.66,163.35,163.28,1.9493]
[1746771636999,33.66,163.35,163.28,11.66983453]
[1746771637400,33.66,163.35,163.34,6.1231]
[1746771637802,33.66,163.35,163.29,2.0117]
[1746771638099,33.66,163.35,163.33,6.1234]
[1746771638302,33.66,163.35,163.3,34.74]
[1746771638799,39.7829,163.35,163.31,6.1239]
[1746771639500,6.1232,163.34,163.3,40.8644]
[1746771640304,6.1232,163.34,163.31,6.1241]
[1746771640602,33.66,163.35,163.3,34.74]
[1746771641899,39.7828,163.35,163.3,34.74]
[1746771642203,1.9592,163.38,163.31,34.58]
[1746771642405,8.0568,163.39,163.35,6.1224]
[1746771643005,6.1214,163.39,163.35,6.1224]
[1746771643906,33.68,163.4,163.35,6.1224]
[1746771644405,6.1215,163.39,163.35,6.1224]
[1746771644802,33.68,163.4,163.34,6.123]
[1746771645102,6.1218,163.38,163.34,6.123]
[1746771645805,33.68,163.4,163.35,6.1227]
[1746771646006,33.68,163.4,163.31,34.58]
[1746771646203,6.1213,163.39,163.31,34.58]
[1746771646405,33.68,163.4,163.31,34.58]
[1746771646605,33.68,163.4,163.31,36.5838]
[1746771646903,33.68,163.4,163.37,6.1217]
[1746771647103,33.68,163.4,163.33,9.72053453]
[1746771647305,33.68,163.4,163.34,2.0392]
[1746771647499,885.98,163.43,163.39,6.1212]
[1746771647699,885.98,163.43,163.35,2.01]
[1746771647902,33.68,163.44,163.36,34.42]
[1746771648104,6.1201,163.42,163.36,34.42]
[1746771648304,33.68,163.44,163.36,34.42]
[1746771649008,33.68,163.44,163.4,6.1205]
[1746771649209,33.68,163.44,163.36,34.42]
[1746771649511,6.1198,163.43,163.38,6.1213]
[1746771649811,33.68,163.44,163.36,34.42]
[1746771650210,33.68,163.44,163.35,2.01]
[1746771650407,39.7994,163.44,163.39,6.1211]
[1746771651015,6.1198,163.43,163.39,6.1211]
[1746771651312,33.66,163.48,163.35,36.55]
[1746771651507,6.1188,163.46,163.35,36.55]
[1746771651707,33.66,163.48,163.37,6.0683484]
[1746771651913,33.66,163.48,163.4,6.1206]
[1746771652205,33.66,163.48,163.37,6.0683484]
[1746771652806,33.66,163.48,163.38,35.5962]
[1746771653008,33.66,163.48,163.45,6.1189]
[1746771653409,33.66,163.48,163.37,34.92]
[1746771653603,33.66,163.48,163.37,40.9883484]
[1746771653805,6.1189,163.46,163.37,34.92]
[1746771654406,6.1083,163.49,163.37,34.92]
[1746771654708,33.66,163.5,163.44,6.119]
[1746771654911,33.66,163.5,163.37,34.92]
[1746771655613,33.66,163.5,163.41,6.1203]
[1746771655817,5.9011,163.49,163.41,6.1203]
[1746771656015,6.1193,163.45,163.41,6.1203]
[1746771656216,5.9011,163.49,163.39,6.1211]
[1746771656515,5.9011,163.49,163.38,34.86]
[1746771656712,372.60945883,163.49,163.35,2.01]
[1746771656909,357.0,163.48,163.35,36.95]
[1746771657113,34.94,163.47,163.35,36.95]
[1746771657418,34.94,163.47,163.35,43.0726]
[1746771657615,34.94,163.47,163.35,34.94]
[1746771658615,6.1215,163.39,163.35,34.94]
[1746771658813,6.1215,163.39,163.34,6.1227]
[1746771659121,6.1215,163.39,163.35,6.1226]
[1746771659716,6.1215,163.39,163.34,6.123]
[1746771659912,34.86,163.41,163.34,6.123]
[1746771660616,34.86,163.41,163.31,34.98]
[1746771660812,366.70835883,163.48,163.31,34.98]
[1746771661021,6.1205,163.41,163.31,34.98]
[1746771661212,34.86,163.42,163.31,34.98]
[1746771661717,6.1212,163.39,163.34,6.1228]
[1746771662221,6.1212,163.39,163.31,34.98]
[1746771663017,6.1209,163.4,163.31,34.98]
[1746771663418,6.1209,163.4,163.35,6.1224]
[1746771663814,69.76,163.42,163.31,34.98]
[1746771664018,69.76,163.42,163.3,38.8493]
[1746771664313,5.8991,163.41,163.29,34.86]
[1746771664509,5.8991,163.41,163.29,6.1249]
[1746771664510,6.1234,163.34,163.29,6.1249]
[1746771664918,6.1234,163.34,163.27,44.52835883]
[1746771664919,6.1226,163.36,163.31,6.1239]
[1746771665118,34.86,163.37,163.27,44.52835883]
[1746771665618,5.8991,163.41,163.31,9.70835883]
[1746771665828,3.9469,163.41,163.32,38.7183]
[1746771666129,3.9469,163.41,163.32,40.6863]
[1746771666832,6.1212,163.39,163.35,6.1224]
[1746771667024,3.9469,163.41,163.32,34.76]
[1746771667331,6.1206,163.41,163.32,34.76]
[1746771667533,563.76,163.42,163.32,34.76]
[1746771667832,6.1211,163.4,163.35,6.1224]
[1746771668320,6.1211,163.4,163.35,6.1227]
[1746771668521,6.1211,163.4,163.32,34.76]
[1746771668928,6.1211,163.4,163.35,6.1224]
[1746771669233,6.1211,163.4,163.32,44.46835883]
[1746771669733,6.1206,163.41,163.32,44.46835883]
[1746771670232,6.1208,163.4,163.36,6.1221]
[1746771670426,34.86,163.42,163.34,9.70835883]
[1746771670633,34.86,163.42,163.35,1.22436486]
[1746771670833,34.86,163.42,163.38,6.1213]
[1746771671036,34.86,163.42,163.35,1.22436486]
[1746771671632,34.86,163.42,163.38,6.1213]
[1746771671833,34.86,163.42,163.35,1.22436486]
[1746771672133,34.86,163.42,163.35,5.16266486]
[1746771673634,39.0095,163.46,163.36,1.9711]
[1746771673835,6.119,163.45,163.41,6.1204]
[1746771674037,1.9034,163.47,163.37,34.76]
[1746771674236,6.1186,163.46,163.37,34.76]
[1746771674441,6.1186,163.46,163.42,6.1198]
[1746771676433,1.9034,163.47,163.37,34.76]
[1746771676936,6.1197,163.44,163.4,6.1206]
[1746771677738,6.1191,163.45,163.41,6.1204]
[1746771677933,6.1191,163.45,163.36,71.5511]
[1746771678137,1.9034,163.47,163.36,71.5511]
[1746771678334,6.119,163.45,163.4,6.1206]
[1746771678538,1.9034,163.47,163.4,6.1206]
[1746771678840,6.1192,163.45,163.4,6.1206]